Cogmind - Beta 13 @@@ ROGUE MODE // 2024.08.04 @ 18:42:18 Player: Not2Dey Result: Destroyed by DV-JS6(R) with Subdweller Beam Cannon Performance ------------- Evolutions (0) 0 Regions Visited (2) 400 Robots Destroyed (22) 110 Value Destroyed (712) 712 Prototype IDs (2) 40 Alien Tech Used (0) 0 Bonus (0) 0 TOTAL SCORE: 1262 Bonus ------- None Cogmind --------- Core Integrity 0/250 Matter 133/300 Energy 96/100 System Corruption 0% Temperature Cool (11) Movement Treading (160) Location -10/Subcaves Parts ------- > --- POWER (1) -------- (None) > --- PROPULSION (2) --- Improved Treads Improved Treads > --- UTILITY (2) ------ Large Storage Unit Hacking Suite > --- WEAPON (2) ------- Subdweller Shrapnel Launcher > --- INVENTORY (15) --- Improved Aluminum Leg Improved Aluminum Leg Improved Aluminum Leg Improved Aluminum Leg Improved Heat Sink Transport Network Coupler Core Shielding Scrap Shield Medium Laser Spread Laser Subdweller Laser Subdweller Machine Gun Battle Cannon Datajack Peak State ------------ > --- POWER ------------ Light Nuclear Core > --- PROPULSION ------- Improved Aluminum Leg Improved Aluminum Leg > --- UTILITY ---------- Improved Heat Sink Medium Storage Unit > --- WEAPON ----------- Spread Laser Plasma Cutter > --- INVENTORY -------- Light Ion Engine Light Treads Light Treads Improved Aluminum Leg Improved Aluminum Leg Large Storage Unit Medium Laser Assault Rifle Light Cannon Grenade Launcher [Rating: 16] Favorites ----------- Power Light Nuclear Core Engine Ion Engine Power Core Light Nuclear Core Propulsion Improved Aluminum Leg Treads Improved Treads Leg Improved Aluminum Leg Utility Large Storage Unit Device Improved Heat Sink Storage Large Storage Unit Hackware Hacking Suite Weapon Spread Laser Energy Gun Spread Laser Ballistic Gun Assault Rifle Ballistic Cannon Light Cannon Launcher Grenade Launcher Special Weapon Plasma Cutter Special Melee Weapon Datajack Build | -11 -10 -10 ------- Run | Yrd Mat Sub Slots Evolved . | . . . Power . | . . . Propulsion . | . . . Utility . | . . . Weapon . | . . . Parts Attached 40 | 9 20 11 Power 7 | 4 3 . Engine 4 | 4 . . Core 3 | . 3 . Reactor . | . . . Propulsion 7 | 2 2 3 Treads 3 | . . 3 Leg 4 | 2 2 . Wheel . | . . . Hover . | . . . Flight . | . . . Utility 8 | 1 7 . Device 1 | . 1 . Storage 6 | 1 5 . Processor . | . . . Hackware 1 | . 1 . Protection . | . . . Artifact . | . . . Weapon 18 | 2 8 8 Energy Gun 5 | 1 1 3 Energy Cannon . | . . . Ballistic Gun 3 | 1 2 . Ballistic Cannon 1 | . 1 . Launcher 5 | . 1 4 Special Weapon 2 | . 2 . Impact Weapon . | . . . Slashing Weapon . | . . . Piercing Weapon . | . . . Special Melee Weapon 2 | . 1 1 Unidentified Prototypes . | . . . Parts Lost 4 | . . 4 Power 1 | . . 1 Propulsion 1 | . . 1 Utility . | . . . Weapon 2 | . . 2 Highest Loss Streak 2 | . . 2 To Critical Strikes . | . . . Average Slot Usage (%) 97 | . 97 98 Engine 2 | . 4 . Core 11 | . 9 14 Treads 9 | . . 22 Leg 18 | . 28 3 Device 2 | . 5 . Storage 15 | . 16 14 Hackware 8 | . 4 14 Energy Gun 11 | . 12 9 Ballistic Gun 4 | . 7 . Launcher 7 | . . 18 Special Melee Weapon 2 | . 4 . Naked Turns . | . . . Heaviest Build 36 | 14 29 36 Greatest Support 46 | 20 26 46 Greatest Overweight (x) 1 | . 1 1 Average Overweight (x) . | . . . Largest Inventory Capacity 15 | 8 15 15 Average Capacity 12 | 6 11 15 Most Carried 15 | 5 10 15 Average Carried 10 | 2 8 13 Final Capacity 15 | 8 15 15 Final Carried 15 | 5 10 15 Class Distribution -------------------- 100% | Mutant Dominant Class ---------------- Mutant | -10/Materials Mutant | -10/Subcaves Resources | -11 -10 -10 ----------- Run | Yrd Mat Sub Matter Collected 708 | 200 390 118 Remotely . | . . . Salvage Created 525 | . 265 260 Parts 39 | . 23 16 Haulers Intercepted 1 | . 1 . Recyclers Shooed . | . . . Parts Field Recycled . | . . . Retrieved Matter . | . . . Parts Self-Destructed 9 | . . 9 Prevented . | . . . Kills | -11 -10 -10 ------- Run | Yrd Mat Sub Combat Hostiles Destroyed 20 | . 10 10 Guns 9 | . 5 4 Cannons 2 | . 2 . AOE 9 | . 3 6 Classes Destroyed 5 | . 4 1 Hauler 1 | . 1 . Operator 1 | . 1 . Swarmer 3 | . 3 . Grunt 7 | . 7 . Subdweller 10 | . . 10 Best Kill Streak 5 | . 5 3 Combat Bots Only 5 | . 5 3 Max Kills in Single Turn 2 | . 2 2 Gunslinging . | . . . Exploded 2 | . 2 2 Melee . | . . . Uniques/NPCs Destroyed . | . . . Combat | -11 -10 -10 -------- Run | Yrd Mat Sub Hostile Shots Fired 87 | . 50 37 Missed 40 | . 19 21 Damage Taken 1136 | . 367 769 Core 271 | . 82 189 Absorbed by Shields . | . . . Core Remaining (%) 100 | 100 . . Volleys Fired 52 | . 28 24 Largest 2 | . 2 2 Hottest 115 | . 100 115 Shots Fired 89 | . 42 47 Gun 63 | . 30 33 Cannon 9 | . 9 . Launcher 17 | . 3 14 Special . | . . . Kinetic 26 | . 21 5 Thermal 51 | . 18 33 Explosive 12 | . 3 9 Electromagnetic . | . . . Robot Hit Streak 20 | . 8 20 Robot Miss Streak 5 | . 5 4 Penetration Max . | . . . Secondary Targets . | . . . Shots Hit Robots 67 | . 34 33 Core Hits 71 | 1 34 36 Critical Kills . | . . . Critical Parts Destroyed . | . . . Critical Strikes . | . . . Melee Attacks 7 | . 7 . Impact . | . . . Slashing . | . . . Piercing . | . . . Sneak Attacks 4 | . 4 . Combat Hostiles . | . . . Follow-up Attacks . | . . . Damage Inflicted 1627 | 7 521 1099 Guns 640 | . 280 360 Cannons 56 | . 56 . Explosions 924 | . 185 739 Melee . | . . . Ramming 7 | 7 . . Kinetic 298 | . 128 170 Thermal 568 | . 208 360 Explosive 754 | . 185 569 Electromagnetic . | . . . Impact . | . . . Slashing . | . . . Piercing . | . . . Highest Corruption . | . . . Average Corruption . | . . . Corruption Purged . | . . . Corruption Blocked . | . . . Overload Shots . | . . . Overflow Damage 1 | . 1 . Projectiles . | . . . Explosions 1 | . 1 . Melee . | . . . Knockbacks . | . . . Impact . | . . . Kinetic . | . . . Secondary . | . . . Self-Inflicted Damage 83 | . 25 58 Shots 2 | . 1 1 Rammed . | . . . Targets Rammed 1 | 1 . . Kicked 1 | 1 . . Crushed . | . . . Highest Temperature 241 | . 235 241 Average Temperature 75 | . 69 88 Received Heat Transfer 483 | . 159 324 Siege Activations . | . . . Robots Corrupted . | . . . Combat Hostiles . | . . . Parts Fried . | . . . Impact Corruptions . | . . . Robots Melted . | . . . Combat Hostiles . | . . . Parts Melted . | . . . Heat Transferred 1001 | . 260 741 Parts Sabotaged . | . . . Parts Stolen . | . . . Parts Stripped . | . . . Power Chain Reactions . | . . . Alert | -11 -10 -10 ------- Run | Yrd Mat Sub Peak Influence 250 | . 250 . Initial . | . . . Average 119 | . 129 . Maximum Alert Level 1 | . 1 . Low Security (%) 67 | 100 65 . Level 1 32 | . 34 . Level 2 . | . . . Level 3 . | . . . Level 4 . | . . . Level 5 . | . . . High Security . | . . . Max Security . | . . . Squads Dispatched 2 | . 2 . Investigation . | . . . Extermination . | . . . Reinforcement 2 | . 2 . Assault . | . . . Garrison . | . . . Intercept . | . . . Searches Triggered . | . . . Construction Impeded . | . . . Haulers Reinforced . | . . . Active Scanning Responses . | . . . Cargo Convoy Interrupts . | . . . Stealth | -11 -10 -10 --------- Run | Yrd Mat Sub Distress Signals 2 | . 2 . Communications Jammed . | . . . Distress Signals . | . . . Times Spotted 42 | . 24 18 Peak Tracking Total 6 | . 5 6 Tactical Retreats 2 | . 2 . Traps | -11 -10 -10 ------- Run | Yrd Mat Sub Traps Triggered 2 | . . 2 Indirectly . | . . . Trap Hack Attempts 5 | . 5 . Triggered . | . . . Disarmed 1 | . 1 . Reprogrammed . | . . . Reused . | . . . Traps Extracted . | . . . Installed . | . . . Triggered . | . . . Machines | -11 -10 -10 ---------- Run | Yrd Mat Sub Machines Disabled . | . . . Max in Single Turn . | . . . Machines Repaired . | . . . Machines Dismantled 2 | . 2 . Machines Sabotaged . | . . . Overloaded Fab Kills . | . . . Hacking | -11 -10 -10 --------- Run | Yrd Mat Sub Machines Accessed 7 | . 7 . Terminals 5 | . 5 . Fabricators . | . . . Repair Stations . | . . . Recycling Units 2 | . 2 . Scanalyzers . | . . . Garrison Access . | . . . Total Hacks 20 | . 20 . Successful 13 | . 13 . Failed 7 | . 7 . Catastrophic 1 | . 1 . Database Lockouts . | . . . Manual . | . . . Terminals 16 | . 16 . Fabricators . | . . . Repair Stations . | . . . Recycling Units 4 | . 4 . Scanalyzers . | . . . Garrison Access . | . . . Terminal Hacks 10 | . 10 . Record 4 | . 4 . Prototype ID Bank 1 | . 1 . Terminal Index 1 | . 1 . Alert Level 1 | . 1 . Locate Traps 1 | . 1 . Dispatch Records 1 | . 1 . Zone Layout 1 | . 1 . Fabricator Hacks . | . . . Repair Station Hacks . | . . . Recycling Unit Hacks 3 | . 3 . Process 1 | . 1 . Report Inventory 2 | . 2 . Scanalyzer . | . . . Garrison Access Hacks . | . . . Unauthorized Hacks . | . . . Terminals . | . . . Fabricators . | . . . Repair Stations . | . . . Recycling Units . | . . . Scanalyzers . | . . . Garrison Access . | . . . Data Cores Recovered . | . . . Used . | . . . Hacking Detections 6 | . 6 . Full Trace Events . | . . . Feedback Events . | . . . Feedback Blocked . | . . . Robot Schematics Acquired . | . . . Robots Built . | . . . Authchips . | . . . Time . | . . . Total Robot Build Rating . | . . . Part Schematics Acquired . | . . . Parts Built . | . . . Authchips . | . . . Time . | . . . Total Part Build Rating . | . . . Parts Repaired . | . . . Time . | . . . Parts Recycled . | . . . Recycled Matter 10 | . 10 . Retrieved Matter . | . . . Retrieved Components . | . . . Parts Scanalyzed . | . . . Part Schematics Acquired . | . . . Parts Damaged . | . . . Bothacking | -11 -10 -10 ------------ Run | Yrd Mat Sub Used RIF Installer . | . . . Robots Hacked 4 | . 4 . Non-combat 3 | . 3 . Combat 1 | . 1 . Robot Hacks Applied 6 | . 6 . parse_system 4 | . 4 . no_distress 1 | . 1 . find_recycling 1 | . 1 . Relay Couplers Released . | . . . Fabnet Peak Effective % . | . . . Robots Rewired . | . . . Allies Hacked . | . . . Hacks Repelled . | . . . Allies | -11 -10 -10 -------- Run | Yrd Mat Sub Total Allies . | . . . Largest Group . | . . . Highest-Rated Group . | . . . Highest-Rated Ally . | . . . Total Orders . | . . . Ally Attacks . | . . . Total Damage . | . . . Kills . | . . . Allies Corrupted . | . . . Allies Melted . | . . . Intel | -11 -10 -10 ------- Run | Yrd Mat Sub Robot Analysis Total . | . . . Derelict Logs Recovered 1 | . . 1 Drone Launches . | . . . Drone Recoveries . | . . . Exploration | -11 -10 -10 ------------- Run | Yrd Mat Sub Turns Passed 2977 | 145 1682 1150 Spaces Moved 1643 | 118 910 615 Core 29 | 29 . . Treads 541 | . . 541 Legs 1073 | 89 910 74 Wheels . | . . . Hover . | . . . Flight . | . . . Fastest Speed 50 | 50 120 160 Average Speed 145 | 102 134 171 Slowest Speed 240 | 120 190 240 Overloaded Moves . | . . . Propulsion Burnouts . | . . . Robots Hopped . | . . . Cave-ins Triggered . | . . . Exploration Rate (%) 48 | 6 96 42 Regions Visited 2 Branch Regions 1 Pre-discovered Areas . | . . . Known Exits Taken . | . . . Unknown Exits Taken 2 | 1 1 . Scrap Searched 1 | . . 1 Spaces Dug . | . . . Terrain Destroyed 88 | . 19 69 Melee . | . . . Projectile . | . . . AOE 88 | . 19 69 Terrain Rammed . | . . . Walls Destroyed . | . . . Machines Disabled . | . . . Actions | -11 -10 -10 --------- Run | Yrd Mat Sub Total 2076 | 140 1277 659 Wait 250 | . 247 3 Move 1641 | 117 909 615 Hop . | . . . Pick Up 33 | 12 16 5 Fast Attach 6 | . 5 1 Attach 10 | 6 2 2 Detach 3 | . 2 1 Swap 24 | 3 13 8 Drop 19 | 1 18 . Fire 52 | . 28 24 Melee 7 | . 7 . Ram . | . . . Kick 1 | 1 . . Crush . | . . . Escape Stasis . | . . . Rewire . | . . . Trap 5 | . 5 . Miscellaneous 25 | . 25 . Route ------- -11/Scrapyard -10/Materials (discovered 5 exits: [*Mat x3] / [*Min] / [*Sub]) -10/Subcaves History --------- Turn | Location | Event 14 | -11/Scrapyard | Discovered new exit (range 15) 146 | -11/Scrapyard | Entered Materials 318 | -10/Materials | Build established: Mutant 670 | -10/Materials | Discovered new exit (range 7) 801 | -10/Materials | Discovered new exit (range 17) 1177 | -10/Materials | Discovered new exit (range 15) 1231 | -10/Materials | Discovered new exit (range 15) 1550 | -10/Materials | Discovered new exit (range 15) 1828 | -10/Materials | Entered Subcaves 1895 | -10/Subcaves | Shifting Twisted Machinery released Spk. Treads 1987 | -10/Subcaves | Ambushed by swarm of Subdwellers 2043 | -10/Subcaves | Lost 4 allies 2124 | -10/Subcaves | Core integrity fell below 50% 2618 | -10/Subcaves | Core integrity fell below 20% 2747 | -10/Subcaves | Shifting Twisted Machinery released Battle Cannon 2777 | -10/Subcaves | Shifting Twisted Machinery released Sub. Power Source 2916 | -10/Subcaves | Learned Materials terminal intel 2978 | -10/Subcaves | Destroyed by DV-JS6(R) with Subdweller Beam Cannon Last Messages --------------- directions. HT-6BO(R): "OHNO!" Critical hit (Meltdown: +270). 6Y-YWM(R) destroyed. 34-NKP(R) destroyed. HT-6BO(R) affixes Scrap Shield Fragment to Scrap Shield. The unstable cave ceiling collapses. HT-6BO(R) destroyed. The unstable cave ceiling collapses. Acquired 3 matter. Battle Cannon falls loose from the Twisted Machinery. Sub. Power Source falls loose from the Twisted Machinery. Acquired Battle Cannon. Acquired derelict log, extracted data. Data stored: Materials terminal intel. Lgt. Nuclear Core destroyed. Grenade Launcher destroyed. Map ----- +----------------------------------------------------+ | ?????????????????????????????????????????????????? | | ?????????????????????????????????????????????????? | | ?????????????????????????????????????????????????? | | ?????????????????????????????????????????????????? | | ?????????????????????????????????????????????????? | | ?????????????????????????????????????????????????? | | ?????????????????????????????????????????????????? | | ?????????????????????????????????????????????????? | | ?????????????????????????????????????????????????? | | ?????????????????????????????????????????????????? | | ?????????????????????????????????????????????????? | | ?????????????????????????????????????????????????? | | ?????????????????????????????????????????????????? | | ?????????????????????????????????????????????????? | | ?????????????????????????????????????????????????? | | ?????????????????????????????????????????????????? | | ????????????? ???????????????????????????????????? | | ????????????? ??????????????????????????????????? | | ??????????????# ????????????????????????????????? | | ???????????????# ? ?????????????????????????????? | | ???????????????#" ??????###???????????????????? | | ???????????????# #????## ##??????????????????? | | ??????????????#" " #??## #??????????????????? | | ???????????????#""" % ### #???##?????????????? | | ???????????????# RR% # #??# #?????????????? | | ?????????????????????#%= @# #?# #?????????????? | | ?????????????????????## ## ## ##????????????? | | ??????????????????????## ##???????????? | | ??????????????????????# ##??????????? | | ?????????????????????## ### #??????????? | | ????????????????#???## ### "#??????????? | | ???????????????## ### "#??????????? | | ???????????????# "##??????????? | | ???????????????# " #???????????? | | ??????????????## #" #???????????? | | ?????????????## ### """"#???????????? | | ?????????????# #?### ###??????????? | | ?????????????## ## ### #??????????? | | ??????????????##??## #??????????? | | ???????????????????## ## ???????????? | | ????????????????????### #??????????????? | | ??????????????????????##### #### #??????????????? | | ?????????????????????????# #### ##?????????????? | | ?????????????????????????## # #?????????????? | | ?????????????????????????# ##?????????????? | | ?????????????????????????## ### ##?????????????? | | ??????????????????????????##### ###???????????? | | ??????????????????????????????# ##??????????? | | ??????????###?#####??????####?## #??????????? | | ??????????# ## ##?????# ##?### #??????????? | +----------------------------------------------------+ Best States ------------- Heat Dissipation 39 Energy Generation 14 Energy Capacity 450 Matter Stores 300 Matter Capacity 350 Sight Range 16 Terrain Scan Density 10 Evasion (%) 55 Recoil Reduction 2 Offensive Hacking 10 Item Schematics ----------------- None Robot Schematics ------------------ None Fabricated ------------ Nothing Alien Tech Used ----------------- None Achievements -------------- None Challenges ------------ None Game ------ Seed TerrabombGrapheneNanovents Manual? 0 Play Time 00:51:42 Cumulative 8.2 hours Start 2024.08.04 @ 17:44:26 End 2024.08.04 @ 18:42:18 Sessions 1 Manual Loads 0 Difficulty Rogue Special Mode None Game No. 6 Rogue 6 Adventurer 0 Explorer 0 Win Type - Total 0 Types 0/0/0/0/0/0/0/0/0 Lore% 9 Gallery% 11 Achievement% 10 Wizard Run 0 Options --------- Layout 1 ASCII 0 Keyboard 0 Movement Arrows Keybinds 0 Fullscreen 1 Font 36/Smallcaps Map View 50x43 Zoom Use 0% Tactical HUD 0 Map Filters NONE Filters NONE Steam 1 RUN: 37586665-1e4c-454c-bd6f-51e26f0521fc